Cogmind - Beta 14 @@@ ROGUE MODE // 2024.10.15 @ 18:05:06 Player: Sandwich Result: Destroyed by QF-Q1J(R) with Subdweller Machine Gun Performance ------------- Evolutions (0) 0 Regions Visited (2) 400 Robots Destroyed (13) 65 Value Destroyed (497) 497 Prototype IDs (2) 40 Alien Tech Used (0) 0 Bonus (0) 0 TOTAL SCORE: 1002 Bonus ------- None Cogmind --------- Core Integrity 0/250 Matter 260/300 Energy 14/100 System Corruption 5% Temperature Cool (0) Movement Treading (240) Ox1 Location -10/Subcaves Parts ------- > --- POWER (1) -------- (None) > --- PROPULSION (2) --- Light Treads > --- UTILITY (2) ------ Disposable Heat Sink Large Storage Unit > --- WEAPON (2) ------- Particle Cannon > --- INVENTORY (15) --- Subdweller Power Source Wheel Subdweller Monowheel Subdweller Monowheel Subdweller Monowheel Medium Laser Particle Gun Subdweller Laser Subdweller Laser Particle Cannon Subdweller Shrapnel Launcher Mining Laser Scrap Shield Fragment (49) Scrap Shield Fragment (49) Peak State ------------ > --- POWER ------------ Subdweller Power Source > --- PROPULSION ------- Spiked Treads Subdweller Monowheel > --- UTILITY ---------- Large Storage Unit Makeshift Light Armor Plating > --- WEAPON ----------- Riot Gun Subdweller Machine Gun > --- INVENTORY -------- Ion Engine Light Treads Wheel Subdweller Monowheel Medium Laser Particle Gun Subdweller Laser Particle Cannon Particle Cannon Particle Cannon Subdweller Beam Cannon Assault Rifle Subdweller Shrapnel Launcher Mining Laser Scrap Shield Fragment [Rating: 18] Favorites ----------- Power Ion Engine Engine Ion Engine Propulsion Spiked Treads Treads Spiked Treads Wheel Subdweller Monowheel Utility Large Storage Unit Device Disposable Heat Sink Storage Large Storage Unit Protection Makeshift Light Armor Plating Weapon Riot Gun Energy Gun Riot Gun Energy Cannon Subdweller Beam Cannon Ballistic Gun Assault Rifle Launcher Subdweller Shrapnel Launcher Build | -11 -10 -10 ------- Run | Yrd Mat Sub Slots Evolved . | . . . Power . | . . . Propulsion . | . . . Utility . | . . . Weapon . | . . . Parts Attached 26 | 6 3 17 Power 5 | 1 . 4 Engine 5 | 1 . 4 Core . | . . . Reactor . | . . . Propulsion 6 | 2 1 3 Treads 4 | 1 1 2 Leg . | . . . Wheel 2 | 1 . 1 Hover . | . . . Flight . | . . . Utility 5 | 1 1 3 Device 2 | . . 2 Storage 2 | 1 1 . Processor . | . . . Hackware . | . . . Protection 1 | . . 1 Artifact . | . . . Weapon 10 | 2 1 7 Energy Gun 4 | 2 . 2 Energy Cannon 2 | . . 2 Ballistic Gun 3 | . 1 2 Ballistic Cannon . | . . . Launcher 1 | . . 1 Special Weapon . | . . . Impact Weapon . | . . . Slashing Weapon . | . . . Piercing Weapon . | . . . Special Melee Weapon . | . . . Unidentified Prototypes . | . . . Corrupted Parts 2 | . . 2 System Corruption 5 | . . 5 Parts Lost 8 | . . 8 Power 2 | . . 2 Propulsion 1 | . . 1 Utility 1 | . . 1 Weapon 4 | . . 4 Highest Loss Streak 4 | . . 4 To Critical Strikes . | . . . Average Slot Usage (%) 93 | . 85 97 Engine 13 | . 14 13 Treads 14 | . 14 14 Wheel 13 | . 14 13 Device 3 | . . 4 Storage 14 | . 14 14 Protection 5 | . . 8 Energy Gun 13 | . 18 12 Energy Cannon 2 | . . 3 Ballistic Gun 11 | . 9 11 Peak Build Rating 18 | 6 8 18 Average Rating 12 | 4 7 15 On Entrance 4 | . 6 8 Naked Turns . | . . . Heaviest Build 38 | 13 28 38 Greatest Support 20 | 20 16 20 Greatest Overweight (x) 2 | 1 1 2 Average Overweight (x) 1 | . . 1 Largest Inventory Capacity 15 | 8 15 15 Average Capacity 14 | 7 14 15 Most Carried 15 | 3 15 15 Average Carried 13 | 2 12 14 Final Capacity 15 | 8 15 15 Final Carried 15 | 3 15 14 Class Distribution -------------------- 51% | Mutant 39% | Derelict-Mutant 9% | Scavenger-Mutant Dominant Class ---------------- Mutant | -10/Materials Derelict-Mutant | -10/Subcaves Resources | -11 -10 -10 ----------- Run | Yrd Mat Sub Matter Collected 506 | 207 118 181 Remotely . | . . . Salvage Created 547 | . 118 429 Parts 25 | . 3 22 Haulers Intercepted . | . . . Recyclers Shooed . | . . . Parts Field Recycled . | . . . Retrieved Matter . | . . . Parts Self-Destructed 2 | . . 2 Prevented . | . . . Kills | -11 -10 -10 ------- Run | Yrd Mat Sub Combat Hostiles Destroyed 12 | . 2 10 Guns 7 | . 1 6 Cannons 3 | . . 3 AOE 1 | . . 1 Classes Destroyed 3 | . 2 1 Watcher 1 | . 1 . Grunt 2 | . 2 . Subdweller 10 | . . 10 Best Kill Streak 3 | . 2 3 Combat Bots Only 3 | . 1 3 Max Kills in Single Turn 1 | . 1 1 Gunslinging . | . . . Exploded 1 | . . 1 Melee . | . . . Uniques/NPCs Destroyed . | . . . Combat | -11 -10 -10 -------- Run | Yrd Mat Sub Hostile Shots Fired 81 | . 23 58 Missed 24 | . 5 19 Damage Taken 1377 | . 257 1120 Core 258 | . 45 213 Absorbed by Shields . | . . . Core Remaining (%) 100 | 100 . . Volleys Fired 53 | . 21 32 Largest 2 | . 2 2 Hottest 140 | . 90 140 Shots Fired 99 | . 37 62 Gun 79 | . 37 42 Cannon 19 | . . 19 Launcher 1 | . . 1 Special . | . . . Kinetic 34 | . 12 22 Thermal 50 | . 25 25 Explosive . | . . . Electromagnetic 15 | . . 15 Robot Hit Streak 16 | . 5 16 Robot Miss Streak 4 | . 3 4 Penetration Max . | . . . Secondary Targets 2 | . 1 1 Max Gunslinging Chain 1 | . 1 1 Shots Hit Robots 68 | . 23 45 Core Hits 26 | . 6 20 Critical Kills . | . . . Critical Parts Destroyed . | . . . Critical Strikes 2 | . 2 . Burn 2 | . 2 . Melee Attacks . | . . . Impact . | . . . Slashing . | . . . Piercing . | . . . Sneak Attacks . | . . . Combat Hostiles . | . . . Follow-up Attacks . | . . . Damage Inflicted 1276 | . 269 1007 Guns 825 | . 269 556 Cannons 329 | . . 329 Explosions 122 | . . 122 Melee . | . . . Ramming . | . . . Kinetic 414 | . 70 344 Thermal 649 | . 199 450 Explosive . | . . . Electromagnetic 213 | . . 213 Impact . | . . . Slashing . | . . . Piercing . | . . . Highest Corruption 5 | . . 5 Average Corruption 4 | . . 4 Corruption Purged . | . . . Corruption Blocked . | . . . Effects 6 | . . 6 Message Errors 1 | . . 1 Matter Fused 1 | . . 1 Heat Flow Errors 1 | . . 1 Data Loss (major) 1 | . . 1 Misfires 2 | . . 2 Overload Shots . | . . . Overflow Damage 6 | . . 6 Projectiles . | . . . Explosions 6 | . . 6 Melee . | . . . Knockbacks . | . . . Impact . | . . . Kinetic . | . . . Secondary . | . . . Self-Inflicted Damage 26 | . . 26 Shots 1 | . . 1 Rammed . | . . . Targets Rammed . | . . . Kicked . | . . . Crushed . | . . . Highest Temperature 250 | . 250 250 Average Temperature 128 | . 146 101 Received Heat Transfer 574 | . 165 409 Siege Activations . | . . . Robots Corrupted . | . . . Combat Hostiles . | . . . Parts Fried . | . . . Impact Corruptions . | . . . Robots Melted 1 | . 1 . Combat Hostiles 1 | . 1 . Parts Melted 7 | . 3 4 Heat Transferred 1239 | . 645 594 Parts Sabotaged . | . . . Parts Stolen . | . . . Parts Stripped . | . . . Power Chain Reactions . | . . . Alert | -11 -10 -10 ------- Run | Yrd Mat Sub Peak Influence 88 | . 88 . Initial . | . . . Average 29 | . 31 . Maximum Alert Level . | . . . Low Security (%) 100 | 100 100 . Level 1 . | . . . Level 2 . | . . . Level 3 . | . . . Level 4 . | . . . Level 5 . | . . . High Security . | . . . Max Security . | . . . Squads Dispatched 1 | . 1 . Investigation 1 | . 1 . Extermination . | . . . Reinforcement . | . . . Assault . | . . . Garrison . | . . . Intercept . | . . . Searches Triggered . | . . . Construction Impeded . | . . . Haulers Reinforced . | . . . Active Scanning Responses . | . . . Cargo Convoy Interrupts . | . . . Stealth | -11 -10 -10 --------- Run | Yrd Mat Sub Distress Signals 1 | . 1 . Communications Jammed . | . . . Distress Signals . | . . . Times Spotted 17 | . 5 12 Peak Tracking Total 3 | . 3 2 Tactical Retreats 1 | . 1 . Traps | -11 -10 -10 ------- Run | Yrd Mat Sub Traps Triggered 4 | . 1 3 Indirectly . | . . . Trap Hack Attempts . | . . . Triggered . | . . . Disarmed . | . . . Reprogrammed . | . . . Reused . | . . . Traps Extracted . | . . . Installed . | . . . Triggered . | . . . Machines | -11 -10 -10 ---------- Run | Yrd Mat Sub Machines Disabled . | . . . Max in Single Turn . | . . . Machines Repaired . | . . . Machines Dismantled . | . . . Machines Sabotaged . | . . . Overloaded Fab Kills . | . . . Hacking | -11 -10 -10 --------- Run | Yrd Mat Sub Machines Accessed 3 | . 3 . Terminals 3 | . 3 . Fabricators . | . . . Repair Stations . | . . . Recycling Units . | . . . Scanalyzers . | . . . Garrison Access . | . . . Total Hacks 12 | . 12 . Successful 4 | . 4 . Failed 8 | . 8 . Catastrophic 2 | . 2 . Database Lockouts . | . . . Manual 11 | . 11 . Terminals 12 | . 12 . Fabricators . | . . . Repair Stations . | . . . Recycling Units . | . . . Scanalyzers . | . . . Garrison Access . | . . . Terminal Hacks 1 | . 1 . Prototype ID Bank 1 | . 1 . Fabricator Hacks . | . . . Repair Station Hacks . | . . . Recycling Unit Hacks . | . . . Scanalyzer . | . . . Garrison Access Hacks . | . . . Unauthorized Hacks 3 | . 3 . Terminals 3 | . 3 . Botnet 2 | . 2 . Operators 1 | . 1 . Fabricators . | . . . Repair Stations . | . . . Recycling Units . | . . . Scanalyzers . | . . . Garrison Access . | . . . Data Cores Recovered . | . . . Used . | . . . Hacking Detections 3 | . 3 . Full Trace Events . | . . . Feedback Events . | . . . Feedback Blocked . | . . . Robot Schematics Acquired . | . . . Robots Built . | . . . Authchips . | . . . Time . | . . . Total Robot Build Rating . | . . . Part Schematics Acquired . | . . . Parts Built . | . . . Authchips . | . . . Time . | . . . Total Part Build Rating . | . . . Parts Repaired . | . . . Time . | . . . Parts Recycled . | . . . Recycled Matter . | . . . Retrieved Matter . | . . . Retrieved Components . | . . . Parts Scanalyzed . | . . . Part Schematics Acquired . | . . . Parts Damaged . | . . . Bothacking | -11 -10 -10 ------------ Run | Yrd Mat Sub Used RIF Installer . | . . . Robots Hacked . | . . . Non-combat . | . . . Combat . | . . . Robot Hacks Applied . | . . . Relay Couplers Released . | . . . Fabnet Peak Effective % . | . . . Robots Rewired . | . . . Allies Hacked . | . . . Hacks Repelled . | . . . Allies | -11 -10 -10 -------- Run | Yrd Mat Sub Total Allies . | . . . Largest Group . | . . . Highest-Rated Group . | . . . Highest-Rated Ally . | . . . Total Orders . | . . . Ally Attacks . | . . . Total Damage . | . . . Kills . | . . . Allies Corrupted . | . . . Allies Melted . | . . . Intel | -11 -10 -10 ------- Run | Yrd Mat Sub Robot Analysis Total . | . . . Derelict Logs Recovered 2 | . . 2 Drone Launches . | . . . Drone Recoveries . | . . . Exploration | -11 -10 -10 ------------- Run | Yrd Mat Sub Turns Passed 2098 | 48 593 1457 Spaces Moved 1330 | 37 245 1048 Core 4 | 4 . . Treads 1 | 1 . . Legs . | . . . Wheels 1325 | 32 245 1048 Hover . | . . . Flight . | . . . Fastest Speed 50 | 50 100 115 Average Speed 118 | 98 113 120 Slowest Speed 160 | 160 115 130 Overloaded Moves . | . . . Propulsion Burnouts . | . . . Robots Hopped . | . . . Cave-ins Triggered . | . . . Exploration Rate (%) 32 | 4 33 59 Regions Visited 2 Branch Regions 1 Pre-discovered Areas . | . . . Known Exits Taken . | . . . Unknown Exits Taken 2 | 1 1 . Scrap Searched 7 | . . 7 Spaces Dug . | . . . Terrain Destroyed 7 | . . 7 Melee . | . . . Projectile 3 | . . 3 AOE 4 | . . 4 Terrain Rammed . | . . . Walls Destroyed . | . . . Machines Disabled . | . . . Actions | -11 -10 -10 --------- Run | Yrd Mat Sub Total 1753 | 45 523 1185 Wait 296 | . 240 56 Move 1328 | 36 244 1048 Hop . | . . . Pick Up 30 | 3 13 14 Fast Attach 13 | 6 1 6 Attach 5 | . . 5 Detach 1 | . . 1 Swap 8 | . 2 6 Drop 19 | . 2 17 Fire 53 | . 21 32 Melee . | . . . Ram . | . . . Kick . | . . . Crush . | . . . Escape Stasis . | . . . Rewire . | . . . Trap . | . . . Miscellaneous . | . . . Route ------- -11/Scrapyard -10/Materials (discovered 2 exits: [*Min] / [*Sub]) -10/Subcaves (discovered 2 exits: *Mat x2) History --------- Turn | Location | Event 17 | -11/Scrapyard | Discovered new exit (range 15) 49 | -11/Scrapyard | Entered Materials 303 | -10/Materials | Build established: Mutant 332 | -10/Materials | Discovered new exit (range 8) 629 | -10/Materials | Discovered new exit (range 3) 642 | -10/Materials | Entered Subcaves 702 | -10/Subcaves | Shifting Twisted Machinery released Riot Gun 785 | -10/Subcaves | Discovered new exit (range 8) 998 | -10/Subcaves | Identified exit to Materials 1061 | -10/Subcaves | Shifting Twisted Machinery released Battle Cannon 1074 | -10/Subcaves | Core integrity fell below 50% 1125 | -10/Subcaves | Disturbed a concealed Subdweller 1172 | -10/Subcaves | Build established: Derelict-Mutant 1432 | -10/Subcaves | Shifting Twisted Machinery released Mak. System Shield 1729 | -10/Subcaves | Lost 4 parts (1p1u2w) 1919 | -10/Subcaves | Core integrity fell below 20% 1973 | -10/Subcaves | Learned Materials security intel 2099 | -10/Subcaves | Destroyed by QF-Q1J(R) with Subdweller Machine Gun Last Messages --------------- 01872_ System corrupted: Sub. Beam Cannon misfires. 01884_ Assault Rifle destroyed. 01887_ System corrupted: Substantial component data lost. 01915_ Destroyed Scrap Shield. 01918_ 7I-354(R) destroyed. 01921_ Acquired 10 matter. 01926_ System corrupted: Heat flow error (+105). 01951_ Sub. Power Source shoots sparks and powers down. 01973_ Acquired derelict log, extracted data. Data stored: Materials security intel. 02087_ Sub. Laser shoots sparks and powers down. 02090_ Integrated Corrupted Sub. Shrapnel Launcher (+1). 02090_ Complication: Energy sink damages Corrupted Sub. Shrapnel Launcher (-26). 02092_ Sub. Monowheel melted. 02092_ 38-MGE(R) destroyed. 02092_ Spk. Treads destroyed. 02092_ Destroyed Spk. Treads. 02097_ Sub. Beam Cannon destroyed. 02098_ Dropped Broken Sub. Power Source. Map ----- +----------------------------------------------------+ | ??????????????????????????????????????????? | | ??????????????????????????????????????????? | | ??????????????????????????????????????????? | | ??????????????????????????????????????????? | | ??????????????????????????????????????????? | | ??????????????????????????????????????????? | | ??????????????????????????????????????????? | | ??????????????????????????????????????????? | | ??????????????????????????????????????????? | | ??????????????????????????????????????????? | | ??????????????????????????????????????????? | | ?????????????????????? ??????????????????? | | ?????????????????????? ??????????????????? | | ?????????????????????? ??????????????????? | | ?????????????????????? ##????????????????? | | ?????????????????????? #????????????????? | | ?????????????????????? #????????????????? | | ?????????????????????? #????????????????? | | ?????????????????????# ?????????????????? | | ?????????????????????# ?????????????????? | | ????????????????????? ?????????????????? | | ?????????????????????# ##????????????????? | | ????????????????????## ?????????????????? | | ????????????????????# ##????????????????? | | ???????????????#;##### #?###????????????? | | ???????????????# @;# ### ######???????? | | ???????????????# ;; # ## ###?????? | | ???????????????# %! #?????? | | ???????????????# R #?????? | | ???????????????# #?##### | | ???????????????# ## # # | | ???????????????# ## | | ???????????????# ## | | ???????????????# #### | | ???????????????# ## #???? | | ???????????????# #### #???? | | ???????????????# #### ###?# #???? | | ???????????????# #??## ###?# #???? | | ??????????????## #???# #### ##???? | | ??????????????# ##??## ### #????? | | ??????????????# ##### #### ###??? | | ??????????????# ## #### #??? | | ??????????????# ### #??? | | ??????????????# #% ##??? | | ??????????????# % #### ### | | ??????????????## ##??# % | | ???????????????## ##???## ## | | ????????????????##### ##????# #?# | | ????????????????????## ###??# %##?# | | ???????????????????#### #??# % #??# | +----------------------------------------------------+ Best States ------------- Heat Dissipation 25 Coolant Potential 50 Energy Generation 15 Energy Capacity 250 Matter Stores 300 Matter Capacity 300 Sight Range 21 Terrain Scan Density 10 Armor Coverage 100 Evasion (%) 40 Recoil Reduction 2 Item Schematics ----------------- None Robot Schematics ------------------ None Fabricated ------------ Nothing Alien Tech Used ----------------- None Achievements -------------- None Challenges ------------ None Game ------ Seed LaserPersonalSuperbattery Manual? 0 Play Time 00:15:00 Cumulative 229.7 hours Start 2024.10.15 @ 17:46:26 End 2024.10.15 @ 18:05:06 Sessions 1 Manual Loads 0 Difficulty Rogue Special Mode None Game No. 293 Rogue 249 Adventurer 4 Explorer 40 Win Type - Total 10 Types 8/1/0/1/0/0/0/0/0 Lore% 45 Gallery% 71 Achievement% 62 Wizard Run 0 Options --------- Layout 0 ASCII 0 Keyboard 0 Movement Mouse Keybinds 0 Fullscreen 2 Font 24/Smallcaps Map View 76x50 Zoom Use 0% Tactical HUD 1 Map Filters NONE Filters NONE Steam 1 RUN: 2a1b601a-b1cc-44b9-a84e-899926946164